[Event "Slovakian-ch Youth 2022"]
[Site "Lubovna"]
[Date "2022.05.24"]
[Round "5.26"]
[White "Vojtas Marek"]
[Black "Filo, David"]
[Result "1-0"]
[ECO "B13"]
[WhiteElo "1000"]
[BlackElo "1653"]
[Annotator "NA RC COMBH"]
[PlyCount "51"]
[EventDate "2022.05.22"]
[EventCountry "SVK"]
[SourceTitle "playchess.com"]
[Source "ChessBase"]
[SourceQuality "1"]
[TimeControl "40/5400+30:1800+30"]

1. e4 {[%emt 0:00:08]} c6 {[%emt 0:00:39]} 2. d4 {[%emt 0:00:13]} d5 {[%emt 0:00:07]} 3. exd5 {[%emt 0:00:07]} cxd5 {[%emt 0:00:10]} 4. Bd3 {[%emt 0:00:05]} Nc6 {[%emt 0:00:36]} 5. c3 {[%emt 0:00:41]} Nf6 {[%emt 0:00:45]} 6. Nf3 {[%emt 0:01:07]} Bg4 {[%emt 0:01:30]} 7. O-O {[%emt 0:02:27]} e6 {[%emt 0:02:28]} 8. h3 {[%emt 0:02:31]} Bxf3 {[%emt 0:03:15]} 9. Qxf3 {[%emt 0:00:11]} Bd6 {[%emt 0:01:01]} 10. Re1 {[%emt 0:02:34]} Qb6 {[%emt 0:06:36]} 11. Nd2 {[%emt 0:02:59]} O-O {[%emt 0:04:16]} 12. Nb3 {[%emt 0:01:44]} Na5 {[%emt 0:13:56]} 13. Nxa5 {[%emt 0:04:08]} Qxa5 {[%emt 0:00:44]} 14. Bg5 {[%emt 0:03:00]} Be7 {[%emt 0:05:01]} 15. Re5 {[%emt 0:07:56]} Qc7 {[%emt 0:23:24]} 16. h4 {[%emt 0:01:47]} Bd6 {[%emt 0:07:40]} 17. Bxf6 {[%emt 0:01:14]} Bxe5 {[%emt 0:00:09]} 18. Bxe5 {[%emt 0:01:12]} Qe7 {[%emt 0:00:50]} 19. Qg3 {[%emt 0:02:28]} f6 {[%emt 0:01:56]} 20. Bd6 {[%emt 0:00:19]} Qf7 {[%emt 0:00:07]} 21. Bxf8 {[%emt 0:00:20]} Rxf8 {[%emt 0:00:08]} 22. c4 {[%emt 0:01:06]} Qd7 {[%emt 0:00:59]} 23. h5 {[%emt 0:01:21]} Kh8 {[%emt 0:00:43]} 24. Rc1 {[%emt 0:02:29]} dxc4 {[%emt 0:02:26]} 25. Rxc4 {[%emt 0:02:35]} Rf7 {[%emt 0:02:19]} 26. Qb8+ {[%emt 0:00:28]} 1-0

[Event "Slovakian-ch Youth 2022"]
[Site "Lubovna"]
[Date "2022.05.24"]
[Round "5.27"]
[White "Dvorak, Alfred"]
[Black "Durovka, Marek"]
[Result "0-1"]
[ECO "B23"]
[WhiteElo "1239"]
[BlackElo "1827"]
[Annotator "NA RC COMBH"]
[PlyCount "100"]
[EventDate "2022.05.22"]
[EventCountry "SVK"]
[SourceTitle "playchess.com"]
[Source "ChessBase"]
[SourceQuality "1"]
[TimeControl "40/5400+30:1800+30"]

1. e4 {[%emt 0:00:07]} c5 {[%emt 0:00:23]} 2. Nc3 {[%emt 0:00:25]} Nc6 {[%emt 0:00:20]} 3. Bb5 {[%emt 0:00:35]} Nd4 {[%emt 0:01:03]} 4. Bc4 {[%emt 0:00:33]} e6 {[%emt 0:01:09]} 5. Nge2 {[%emt 0:02:06]} g6 {[%emt 0:01:39]} 6. Nxd4 {[%emt 0:02:41]} cxd4 {[%emt 0:00:17]} 7. Nb5 {[%emt 0:02:11]} Qb6 {[%emt 0:04:56]} 8. Qf3 {[%emt 0:10:39]} a6 {[%emt 0:05:25]} 9. Na3 {[%emt 0:02:18]} Bg7 {[%emt 0:04:04]} 10. d3 {[%emt 0:03:30]} Qb4+ {[%emt 0:09:00]} 11. Ke2 {[%emt 0:04:44]} Ne7 {[%emt 0:04:23]} 12. Re1 {[%emt 0:06:36]} O-O {[%emt 0:01:12]} 13. Bb3 {[%emt 0:02:58]} b5 {[%emt 0:05:06]} 14. Bf4 {[%emt 0:10:59]} Bb7 {[%emt 0:08:22]} 15. Qg3 {[%emt 0:05:36]} Nc8 {[%emt 0:04:00]} 16. h4 {[%emt 0:05:54]} Qc5 {[%emt 0:06:43]} 17. Qh3 {[%emt 0:10:18]} a5 {[%emt 0:07:38]} 18. g4 {[%emt 0:06:09]} h6 {[%emt 0:10:39]} 19. h5 {[%emt 0:04:04]} g5 {[%emt 0:03:08]} 20. Bc1 {[%emt 0:05:31]} a4 {[%emt 0:02:22]} 21. f4 {[%emt 0:03:25]} f6 {[%emt 0:01:12]} 22. f5 {[%emt 0:07:16]} axb3 {[%emt 0:00:31]} 23. cxb3 {[%emt 0:01:36]} exf5 {[%emt 0:01:55]} 24. exf5 {[%emt 0:01:24]} Nb6 {[%emt 0:00:46]} 25. Bd2 {[%emt 0:00:32]} Rfe8+ {[%emt 0:01:30]} 26. Kf2 {[%emt 0:00:32]} b4 {[%emt 0:01:26]} 27. Nc4 {[%emt 0:00:27]} Nxc4 {[%emt 0:00:08]} 28. bxc4 {[%emt 0:00:08]} Bf8 {[%emt 0:01:27]} 29. b3 {[%emt 0:00:48]} Bd6 {[%emt 0:00:20]} 30. Qf1 {[%emt 0:00:54]} Qc7 {[%emt 0:00:42]} 31. Qh3 {[%emt 0:00:19]} Bf4 {[%emt 0:01:28]} 32. Bxf4 {[%emt 0:00:26]} Qxf4+ {[%emt 0:00:08]} 33. Kg1 {[%emt 0:00:08]} Bf3 $19 {[%emt 0:00:27]} (33... Re3 $142 34. Rxe3 dxe3 35. Qh2 Qd4 36. Qe2 Qxa1+ 37. Qf1 Rxa2 38. Qxa1 Rxa1+ 39. Kh2 e2 40. Kh3 Rh1+ 41. Kg3 e1=Q#) 34. Rf1 {[%emt 0:01:06]} Qxg4+ {[%emt 0:00:19]} 35. Qxg4 {[%emt 0:00:08]} Bxg4 {[%emt 0:00:14]} 36. Rae1 {[%emt 0:00:43]} Be2 {[%emt 0:00:13]} 37. Rf2 {[%emt 0:00:15]} Bxd3 {[%emt 0:00:08]} 38. Rd1 {[%emt 0:00:28]} Re3 {[%emt 0:00:29]} 39. Rfd2 {[%emt 0:00:19]} Be2 {[%emt 0:00:38]} 40. Rc1 {[%emt 0:00:42]} d3 {[%emt 0:00:29]} 41. c5 {[%emt 0:30:46]} Bf3 {[%emt 0:32:36]} 42. Rc4 {[%emt 0:00:38]} Rb8 {[%emt 0:01:27]} 43. Rd4 {[%emt 0:00:21]} Bc6 {[%emt 0:00:42]} 44. R2xd3 {[%emt 0:00:25]} Rxd3 {[%emt 0:00:09]} 45. Rxd3 {[%emt 0:00:04]} Rb5 {[%emt 0:00:25]} 46. Rd4 {[%emt 0:00:24]} Rxc5 {[%emt 0:00:37]} 47. Rxb4 {[%emt 0:00:07]} Rc1+ {[%emt 0:00:06]} 48. Kf2 {[%emt 0:00:35]} Rc2+ {[%emt 0:00:05]} 49. Ke3 {[%emt 0:00:13]} Rxa2 {[%emt 0:00:05]} 50. Rb8+ {[%emt 0:00:14]} Kf7 {[%emt 0:02:28]} 0-1

[Event "Slovakian-ch Youth 2022"]
[Site "Lubovna"]
[Date "2022.05.24"]
[Round "5.28"]
[White "Meszaros, Casey Ryan"]
[Black "Ropovik, Samuel"]
[Result "1-0"]
[ECO "B22"]
[WhiteElo "1757"]
[BlackElo "1453"]
[Annotator "NA COMBH"]
[PlyCount "93"]
[EventDate "2022.05.22"]
[EventCountry "SVK"]
[SourceTitle "playchess.com"]
[Source "ChessBase"]
[SourceQuality "1"]
[TimeControl "40/5400+30:1800+30"]

1. e4 {[%emt 0:01:11]} c5 {[%emt 0:00:09]} 2. c3 {[%emt 0:00:53]} d5 {[%emt 0:00:37]} 3. exd5 {[%emt 0:02:35]} Qxd5 {[%emt 0:00:02]} 4. d4 {[%emt 0:01:27]} Nf6 {[%emt 0:01:15]} 5. Nf3 {[%emt 0:00:52]} Bg4 {[%emt 0:00:48]} 6. Be2 {[%emt 0:00:49]} e6 {[%emt 0:02:10]} 7. Be3 {[%emt 0:02:54]} cxd4 {[%emt 0:03:27]} 8. cxd4 {[%emt 0:02:29]} Bb4+ {[%emt 0:01:49]} 9. Nc3 {[%emt 0:00:41]} O-O {[%emt 0:06:42]} 10. O-O {[%emt 0:01:02]} Qd6 {[%emt 0:01:02]} 11. Nb5 {[%emt 0:08:10]} Qe7 {[%emt 0:13:21]} 12. Rc1 {[%emt 0:10:25]} Nc6 {[%emt 0:02:37]} 13. Ne5 {[%emt 0:07:22]} Bxe2 {[%emt 0:12:53]} 14. Qxe2 {[%emt 0:00:52]} Nxe5 {[%emt 0:02:56]} 15. dxe5 {[%emt 0:04:10]} Nd5 {[%emt 0:01:44]} 16. a3 {[%emt 0:03:11]} Nxe3 {[%emt 0:01:12]} 17. Qxe3 {[%emt 0:00:20]} Ba5 {[%emt 0:11:15]} 18. Rfd1 {[%emt 0:05:07]} a6 {[%emt 0:08:02]} 19. Nd6 {[%emt 0:03:14]} Bc7 {[%emt 0:00:47]} 20. Qc5 {[%emt 0:02:14]} Bxd6 {[%emt 0:01:34]} 21. exd6 {[%emt 0:03:15]} Qd7 {[%emt 0:02:12]} 22. Qb6 {[%emt 0:09:35]} Rac8 {[%emt 0:01:05]} 23. Rc7 {[%emt 0:04:58]} Rxc7 {[%emt 0:00:17]} 24. Qxc7 {[%emt 0:00:02]} Rd8 {[%emt 0:00:43]} 25. Rc1 {[%emt 0:15:37]} h6 {[%emt 0:05:19]} 26. g3 {[%emt 0:02:59]} Qxd6 {[%emt 0:09:16]} 27. Qxb7 {[%emt 0:00:17]} Rb8 {[%emt 0:02:03]} 28. Rc8+ {[%emt 0:00:55]} Rxc8 {[%emt 0:00:17]} 29. Qxc8+ {[%emt 0:00:02]} Kh7 {[%emt 0:00:45]} 30. Qb7 {[%emt 0:00:54]} f6 {[%emt 0:01:38]} 31. Kg2 {[%emt 0:00:55]} f5 {[%emt 0:01:13]} 32. b4 {[%emt 0:02:21]} Kg6 {[%emt 0:00:41]} 33. a4 {[%emt 0:00:20]} Kf6 {[%emt 0:00:52]} 34. a5 {[%emt 0:02:10]} g6 {[%emt 0:01:59]} 35. b5 {[%emt 0:00:13]} f4 {[%emt 0:04:46]} 36. bxa6 {[%emt 0:00:43]} f3+ {[%emt 0:00:31]} 37. Qxf3+ {[%emt 0:00:21]} Ke5 {[%emt 0:00:30]} 38. Qf4+ {[%emt 0:00:18]} Kd5 {[%emt 0:00:09]} 39. Qxd6+ {[%emt 0:00:14]} Kxd6 {[%emt 0:00:02]} 40. a7 {[%emt 0:00:09]} Kc7 {[%emt 0:00:20]} 41. a8=Q {[%emt 0:30:09]} e5 {[%emt 0:30:28]} 42. a6 {[%emt 0:00:09]} g5 {[%emt 0:00:13]} 43. Qb7+ {[%emt 0:00:07]} Kd6 {[%emt 0:00:18]} 44. a7 {[%emt 0:00:05]} e4 {[%emt 0:00:18]} 45. a8=R {[%emt 0:00:09]} e3 {[%emt 0:00:15]} 46. Ra5 {[%emt 0:00:17]} e2 {[%emt 0:00:13]} 47. Qb6+ {[%emt 0:00:06]} 1-0

[Event "Slovakian-ch Youth 2022"]
[Site "Lubovna"]
[Date "2022.05.24"]
[Round "5.29"]
[White "Hudak, Michal"]
[Black "Shykhnenko, Hryhorii"]
[Result "1-0"]
[ECO "A43"]
[WhiteElo "1169"]
[BlackElo "1284"]
[Annotator "NA RC COMBH"]
[PlyCount "49"]
[EventDate "2022.05.22"]
[EventCountry "SVK"]
[SourceTitle "playchess.com"]
[Source "ChessBase"]
[SourceQuality "1"]
[TimeControl "40/5400+30:1800+30"]

1. d4 {[%emt 0:00:15]} c5 {[%emt 0:00:43]} 2. dxc5 {[%emt 0:01:14]} e6 {[%emt 0:00:11]} 3. e4 {[%emt 0:00:33]} Bxc5 {[%emt 0:00:33]} 4. Nf3 {[%emt 0:00:23]} Nf6 {[%emt 0:01:07]} 5. Bg5 {[%emt 0:00:26]} Bxf2+ {[%emt 0:03:48]} 6. Ke2 {[%emt 0:09:14]} Qb6 {[%emt 0:04:45]} 7. Nbd2 {[%emt 0:10:51]} Ng4 {[%emt 0:19:31]} 8. Nc4 {[%emt 0:06:46]} Qa6 {[%emt 0:12:02]} 9. Qd3 {[%emt 0:10:03]} Bc5 {[%emt 0:05:58]} 10. Qc3 {[%emt 0:12:48]} Nf2 {[%emt 0:08:11]} 11. Ke1 {[%emt 0:09:28]} f6 {[%emt 0:04:38]} 12. Be3 {[%emt 0:16:53]} Nxe4 {[%emt 0:08:06]} 13. Bxc5 {[%emt 0:01:50]} Nxc3 {[%emt 0:06:04]} 14. Nd6+ {[%emt 0:01:12]} Qxd6 {[%emt 0:00:18]} 15. Bxd6 {[%emt 0:00:10]} Nd5 {[%emt 0:00:59]} 16. Kf2 {[%emt 0:02:58]} Nc6 {[%emt 0:01:34]} 17. Bc4 {[%emt 0:00:32]} Nde7 {[%emt 0:01:09]} 18. g4 {[%emt 0:03:09]} b6 {[%emt 0:01:25]} 19. Rhe1 {[%emt 0:00:42]} Kf7 {[%emt 0:01:20]} 20. Rad1 {[%emt 0:02:36]} Bb7 {[%emt 0:01:56]} 21. Nh4 {[%emt 0:02:52]} Nc8 {[%emt 0:01:32]} 22. Nf5 {[%emt 0:03:27]} Na5 {[%emt 0:01:15]} 23. Bb4 {[%emt 0:02:04]} Nxc4 {[%emt 0:03:00]} 24. Rxd7+ {[%emt 0:00:06]} Kg6 {[%emt 0:01:06]} 25. Rxg7# {[%emt 0:00:10]} 1-0

[Event "Slovakian-ch Youth 2022"]
[Site "Lubovna"]
[Date "2022.05.24"]
[Round "5.30"]
[White "Dolnik, Michal"]
[Black "Janoska Peter"]
[Result "0-1"]
[ECO "B45"]
[WhiteElo "1548"]
[BlackElo "1272"]
[Annotator "NA COMBH"]
[PlyCount "128"]
[EventDate "2022.05.22"]
[EventCountry "SVK"]
[SourceTitle "playchess.com"]
[Source "ChessBase"]
[SourceQuality "1"]
[TimeControl "40/5400+30:1800+30"]

1. e4 {[%emt 0:00:13]} c5 {[%emt 0:00:15]} 2. Nf3 {[%emt 0:00:07]} e6 {[%emt 0:00:10]} 3. d4 {[%emt 0:00:24]} cxd4 {[%emt 0:00:06]} 4. Nxd4 {[%emt 0:00:07]} Nf6 {[%emt 0:00:14]} 5. Nc3 {[%emt 0:00:07]} Nc6 {[%emt 0:00:20]} 6. Be3 {[%emt 0:00:26]} Bb4 {[%emt 0:01:05]} 7. f3 {[%emt 0:02:59]} d5 {[%emt 0:05:07]} 8. a3 {[%emt 0:04:31]} Bxc3+ {[%emt 0:12:12]} 9. bxc3 {[%emt 0:00:15]} e5 {[%emt 0:06:02]} 10. Nxc6 {[%emt 0:05:01]} bxc6 {[%emt 0:00:09]} 11. Bd3 {[%emt 0:16:34]} dxe4 {[%emt 0:04:58]} 12. fxe4 {[%emt 0:00:14]} O-O {[%emt 0:02:00]} 13. O-O {[%emt 0:00:26]} Qa5 {[%emt 0:10:48]} 14. Qe1 {[%emt 0:01:14]} Ng4 {[%emt 0:01:00]} 15. Bd2 {[%emt 0:00:54]} Be6 {[%emt 0:02:37]} 16. Qg3 {[%emt 0:00:46]} Qc5+ {[%emt 0:04:23]} 17. Kh1 {[%emt 0:04:42]} Kh8 {[%emt 0:06:12]} 18. c4 {[%emt 0:12:57]} Rfd8 {[%emt 0:02:02]} 19. h3 {[%emt 0:03:18]} Nf6 {[%emt 0:01:05]} 20. Bb4 {[%emt 0:00:21]} Qd4 {[%emt 0:00:40]} 21. Rae1 {[%emt 0:13:52]} Re8 {[%emt 0:01:50]} 22. Rf3 {[%emt 0:04:04]} Rad8 {[%emt 0:02:55]} 23. Ree3 {[%emt 0:01:49]} Nh5 {[%emt 0:01:51]} 24. Qg5 {[%emt 0:02:38]} Nf4 {[%emt 0:01:55]} 25. Rg3 {[%emt 0:02:24]} Ng6 {[%emt 0:01:23]} 26. h4 {[%emt 0:04:45]} f6 {[%emt 0:00:56]} 27. Qh5 {[%emt 0:00:54]} Nf4 {[%emt 0:01:02]} 28. Qf3 {[%emt 0:00:52]} c5 {[%emt 0:02:02]} 29. Ba5 {[%emt 0:00:46]} Rd7 {[%emt 0:00:23]} 30. h5 {[%emt 0:00:56]} Qa1+ {[%emt 0:00:58]} 31. Kh2 {[%emt 0:00:14]} Qxa3 {[%emt 0:01:13]} 32. Bd2 {[%emt 0:00:13]} Rb7 {[%emt 0:02:11]} 33. Re1 {[%emt 0:00:41]} Qb2 {[%emt 0:02:14]} 34. Bxf4 {[%emt 0:00:22]} exf4 {[%emt 0:00:15]} 35. Qxf4 {[%emt 0:00:06]} Rf7 {[%emt 0:01:27]} 36. Qd6 {[%emt 0:01:32]} Qe5 {[%emt 0:01:24]} 37. Qxe5 {[%emt 0:01:39]} fxe5 {[%emt 0:00:08]} 38. Rg5 {[%emt 0:00:27]} Bc8 {[%emt 0:00:43]} 39. Rf1 {[%emt 0:00:12]} Rxf1 {[%emt 0:01:07]} 40. Bxf1 {[%emt 0:00:16]} a5 {[%emt 0:03:35]} 41. Rg3 {[%emt 0:30:54]} Re6 {[%emt 0:29:49]} 42. Ra3 {[%emt 0:00:15]} Ra6 {[%emt 0:00:29]} 43. c3 {[%emt 0:00:17]} Kg8 {[%emt 0:01:52]} 44. Kg3 {[%emt 0:00:16]} Kf7 {[%emt 0:01:17]} 45. Kh4 {[%emt 0:00:07]} Kf6 {[%emt 0:00:56]} 46. g4 {[%emt 0:00:09]} g6 {[%emt 0:01:16]} 47. g5+ {[%emt 0:00:15]} Kf7 {[%emt 0:00:59]} 48. h6 {[%emt 0:00:34]} Bd7 {[%emt 0:00:38]} 49. Bh3 {[%emt 0:00:44]} Be8 {[%emt 0:01:39]} 50. Bc8 {[%emt 0:00:29]} Ra7 {[%emt 0:00:48]} 51. Bh3 {[%emt 0:01:10]} Bc6 {[%emt 0:00:23]} 52. Bg2 {[%emt 0:00:06]} a4 {[%emt 0:00:32]} 53. Bf3 {[%emt 0:01:01]} Rd7 {[%emt 0:01:03]} 54. Be2 {[%emt 0:00:22]} Rd2 {[%emt 0:01:08]} 55. Bf3 {[%emt 0:00:42]} Rd3 {[%emt 0:02:10]} 56. Be2 {[%emt 0:00:19]} Re3 {[%emt 0:01:16]} 57. Bf1 {[%emt 0:00:24]} Rxe4+ {[%emt 0:00:14]} 58. Kg3 {[%emt 0:00:17]} Re1 {[%emt 0:01:33]} 59. Bd3 {[%emt 0:00:39]} Re3+ {[%emt 0:00:29]} 60. Kg4 {[%emt 0:01:24]} Rxd3 {[%emt 0:00:24]} 61. Kh4 {[%emt 0:01:06]} e4 {[%emt 0:00:55]} 62. Kg4 {[%emt 0:00:12]} Rd2 {[%emt 0:00:33]} 63. Ra1 {[%emt 0:00:16]} e3 {[%emt 0:01:23]} 64. Kg3 {[%emt 0:00:09]} e2 {[%emt 0:00:46]} 0-1

[Event "Slovakian-ch Youth 2022"]
[Site "Lubovna"]
[Date "2022.05.24"]
[Round "5.31"]
[White "Ziman, Damian"]
[Black "Bilik, Matej"]
[Result "1/2-1/2"]
[ECO "C77"]
[WhiteElo "1293"]
[BlackElo "1553"]
[Annotator "NA COMBH"]
[PlyCount "83"]
[EventDate "2022.05.22"]
[EventCountry "SVK"]
[SourceTitle "playchess.com"]
[Source "ChessBase"]
[SourceQuality "1"]
[TimeControl "40/5400+30:1800+30"]

1. e4 {[%emt 0:00:16]} e5 {[%emt 0:00:10]} 2. Nf3 {[%emt 0:00:23]} Nc6 {[%emt 0:00:09]} 3. Bc4 {[%emt 0:00:09]} Nf6 {[%emt 0:00:09]} 4. d3 {[%emt 0:00:17]} Be7 {[%emt 0:00:19]} 5. O-O {[%emt 0:00:21]} O-O {[%emt 0:00:08]} 6. c3 {[%emt 0:00:36]} d6 {[%emt 0:00:49]} 7. Nbd2 {[%emt 0:00:42]} Na5 {[%emt 0:01:23]} 8. Bb5 {[%emt 0:00:37]} a6 {[%emt 0:00:13]} 9. Ba4 {[%emt 0:00:12]} b5 {[%emt 0:00:43]} 10. Bc2 {[%emt 0:00:08]} c5 {[%emt 0:01:01]} 11. a3 {[%emt 0:04:04]} Nc6 {[%emt 0:02:37]} 12. Re1 {[%emt 0:01:32]} h6 {[%emt 0:06:29]} 13. Nf1 {[%emt 0:02:46]} Qc7 {[%emt 0:00:59]} 14. Ne3 {[%emt 0:03:33]} Be6 {[%emt 0:00:54]} 15. Bb3 {[%emt 0:03:09]} Rad8 {[%emt 0:00:46]} 16. Nd5 {[%emt 0:01:51]} Bxd5 {[%emt 0:01:40]} 17. Bxd5 {[%emt 0:04:00]} Nxd5 {[%emt 0:02:32]} 18. exd5 {[%emt 0:00:23]} Nb8 {[%emt 0:00:25]} 19. c4 {[%emt 0:07:08]} Nd7 {[%emt 0:08:14]} 20. Bd2 {[%emt 0:10:00]} Rb8 {[%emt 0:08:10]} 21. Qc2 {[%emt 0:13:09]} f5 {[%emt 0:10:07]} 22. b3 {[%emt 0:15:58]} Bf6 {[%emt 0:05:02]} 23. Ra2 {[%emt 0:01:47]} Rfe8 {[%emt 0:06:14]} 24. Bc1 {[%emt 0:02:59]} Nf8 {[%emt 0:09:02]} 25. Bb2 {[%emt 0:04:05]} Ng6 {[%emt 0:00:35]} 26. Re2 {[%emt 0:06:39]} Qf7 {[%emt 0:07:16]} 27. Kf1 {[%emt 0:07:58]} Rb7 {[%emt 0:10:02]} 28. Nd2 {[%emt 0:01:06]} Rbe7 {[%emt 0:03:44]} 29. Ba1 {[%emt 0:02:09]} Nf8 {[%emt 0:01:47]} 30. Qb1 {[%emt 0:02:25]} Nh7 {[%emt 0:00:18]} 31. Nf3 {[%emt 0:00:20]} e4 {[%emt 0:00:33]} 32. dxe4 {[%emt 0:00:12]} fxe4 {[%emt 0:00:16]} 33. Ng1 {[%emt 0:00:19]} Ng5 {[%emt 0:01:22]} 34. Bxf6 {[%emt 0:00:26]} Qxf6 {[%emt 0:00:24]} 35. Qe1 {[%emt 0:00:18]} Qf5 {[%emt 0:03:09]} 36. Re3 {[%emt 0:00:31]} Nh7 {[%emt 0:01:00]} 37. Ne2 {[%emt 0:00:51]} Nf6 {[%emt 0:03:25]} 38. h3 {[%emt 0:00:47]} Qg6 {[%emt 0:01:23]} 39. Nc3 {[%emt 0:00:58]} bxc4 {[%emt 0:01:07]} 40. bxc4 {[%emt 0:00:27]} Kf8 {[%emt 0:05:15]} 41. Rb2 {[%emt 0:30:51]} Nd7 {[%emt 0:05:07]} 42. Rbe2 {[%emt 0:00:00]} 1/2-1/2

[Event "Slovakian-ch Youth 2022"]
[Site "Lubovna"]
[Date "2022.05.24"]
[Round "5.32"]
[White "Drabek Matej"]
[Black "Diachenko Mykhailo"]
[Result "1-0"]
[ECO "B23"]
[WhiteElo "1000"]
[BlackElo "1000"]
[Annotator "NA RC COMBH"]
[PlyCount "67"]
[EventDate "2022.05.22"]
[EventCountry "SVK"]
[SourceTitle "playchess.com"]
[Source "ChessBase"]
[SourceQuality "1"]
[TimeControl "40/5400+30:1800+30"]

1. e4 {[%emt 0:00:04]} c5 {[%emt 0:00:14]} 2. Nc3 {[%emt 0:00:44]} Nf6 {[%emt 0:00:16]} 3. d3 {[%emt 0:00:41]} h6 {[%emt 0:00:32]} 4. Nf3 {[%emt 0:01:06]} d5 {[%emt 0:01:15]} 5. exd5 {[%emt 0:02:36]} Nxd5 {[%emt 0:00:30]} 6. Na4 {[%emt 0:00:44]} Nd7 {[%emt 0:00:51]} 7. d4 {[%emt 0:03:10]} e5 {[%emt 0:00:50]} 8. dxe5 {[%emt 0:02:20]} Qe7 {[%emt 0:00:27]} 9. Qxd5 {[%emt 0:01:01]} Nb6 {[%emt 0:03:00]} 10. Nxb6 {[%emt 0:02:22]} axb6 {[%emt 0:00:25]} 11. Bb5+ {[%emt 0:01:05]} Bd7 {[%emt 0:01:16]} 12. Qxb7 {[%emt 0:00:45]} Rd8 {[%emt 0:01:08]} 13. Qxb6 {[%emt 0:01:51]} Bxb5 {[%emt 0:00:15]} 14. Qxb5+ {[%emt 0:00:26]} Qd7 {[%emt 0:00:39]} 15. Qe2 {[%emt 0:00:51]} Be7 {[%emt 0:00:28]} 16. Be3 {[%emt 0:01:57]} O-O {[%emt 0:00:45]} 17. Bd2 {[%emt 0:00:26]} Rfe8 {[%emt 0:01:00]} 18. O-O-O {[%emt 0:00:32]} Bf6 {[%emt 0:00:40]} 19. Ba5 {[%emt 0:00:39]} Qxd1+ {[%emt 0:00:43]} 20. Qxd1 {[%emt 0:00:12]} Rxd1+ {[%emt 0:00:46]} 21. Rxd1 {[%emt 0:00:08]} Bxe5 {[%emt 0:00:16]} 22. Nxe5 {[%emt 0:00:31]} Rxe5 {[%emt 0:00:12]} 23. Rd8+ {[%emt 0:00:10]} Kh7 {[%emt 0:00:11]} 24. b4 {[%emt 0:00:53]} h5 {[%emt 0:00:47]} 25. b5 {[%emt 0:00:16]} c4 {[%emt 0:00:38]} 26. a4 {[%emt 0:00:27]} h4 {[%emt 0:01:42]} 27. Bb4 {[%emt 0:00:49]} Re2 {[%emt 0:00:56]} 28. Rd2 {[%emt 0:00:17]} Re8 {[%emt 0:00:47]} 29. Rd4 {[%emt 0:00:32]} Ra8 {[%emt 0:00:18]} 30. Rxh4+ {[%emt 0:00:14]} Kg6 {[%emt 0:00:58]} 31. Bc3 {[%emt 0:00:40]} Rxa4 {[%emt 0:00:24]} 32. Rg4+ {[%emt 0:00:24]} Kf5 {[%emt 0:00:51]} 33. Rxg7 {[%emt 0:00:28]} Ra7 {[%emt 0:01:11]} 34. h4 {[%emt 0:01:16]} 1-0

[Event "Slovakian-ch Youth 2022"]
[Site "Lubovna"]
[Date "2022.05.24"]
[Round "5.33"]
[White "Brnusak, Simon"]
[Black "Boros, David"]
[Result "1/2-1/2"]
[ECO "B18"]
[WhiteElo "1090"]
[BlackElo "1173"]
[Annotator "NA COMBH"]
[PlyCount "82"]
[EventDate "2022.05.22"]
[EventCountry "SVK"]
[SourceTitle "playchess.com"]
[Source "ChessBase"]
[SourceQuality "1"]
[TimeControl "40/5400+30:1800+30"]

1. e4 {[%emt 0:00:06]} c6 {[%emt 0:03:53]} 2. d4 {[%emt 0:00:25]} d5 {[%emt 0:00:13]} 3. Nc3 {[%emt 0:01:51]} dxe4 {[%emt 0:00:15]} 4. Nxe4 {[%emt 0:00:35]} Bf5 {[%emt 0:00:15]} 5. Bd3 {[%emt 0:01:34]} Nd7 {[%emt 0:11:36]} 6. Nf3 {[%emt 0:02:08]} Bxe4 {[%emt 0:04:08]} 7. Bxe4 {[%emt 0:01:28]} Ngf6 {[%emt 0:01:44]} 8. Qe2 {[%emt 0:01:36]} Nxe4 {[%emt 0:04:00]} 9. Qxe4 {[%emt 0:01:57]} Nf6 {[%emt 0:02:09]} 10. Qe2 {[%emt 0:01:17]} e6 {[%emt 0:02:51]} 11. Bd2 {[%emt 0:12:15]} Qb6 {[%emt 0:05:24]} 12. O-O-O {[%emt 0:01:46]} Bd6 {[%emt 0:05:37]} 13. Bg5 {[%emt 0:02:51]} Nd7 {[%emt 0:04:18]} 14. Be3 {[%emt 0:14:10]} Qc7 {[%emt 0:03:45]} 15. g3 {[%emt 0:12:52]} O-O-O {[%emt 0:09:38]} 16. Ng5 {[%emt 0:01:54]} Nf6 {[%emt 0:04:17]} 17. f3 {[%emt 0:05:20]} h6 {[%emt 0:05:19]} 18. Ne4 {[%emt 0:02:32]} Nxe4 {[%emt 0:03:22]} 19. fxe4 {[%emt 0:01:45]} Kb8 {[%emt 0:05:36]} 20. Qf2 {[%emt 0:03:54]} Rc8 {[%emt 0:03:21]} 21. d5 {[%emt 0:06:38]} a6 {[%emt 0:02:22]} 22. Bb6 {[%emt 0:02:07]} Qe7 {[%emt 0:01:23]} 23. Rhf1 {[%emt 0:09:57]} Rhf8 {[%emt 0:01:43]} 24. Bd4 {[%emt 0:01:12]} e5 {[%emt 0:02:38]} 25. Be3 {[%emt 0:01:31]} cxd5 {[%emt 0:02:35]} 26. exd5 {[%emt 0:00:00]} f6 {[%emt 0:00:53]} 27. Rd3 {[%emt 0:00:49]} Rfd8 {[%emt 0:03:40]} 28. Rb3 {[%emt 0:00:38]} Bc5 {[%emt 0:00:23]} 29. Rd1 {[%emt 0:00:44]} Bxe3+ {[%emt 0:00:45]} 30. Qxe3 {[%emt 0:00:13]} Qc5 {[%emt 0:00:32]} 31. Qxc5 {[%emt 0:00:31]} Rxc5 {[%emt 0:00:13]} 32. d6 {[%emt 0:00:43]} Rc6 {[%emt 0:01:11]} 33. d7 {[%emt 0:00:15]} Re6 {[%emt 0:00:36]} 34. Re3 {[%emt 0:01:00]} Re7 {[%emt 0:01:21]} 35. Red3 {[%emt 0:00:56]} Re6 {[%emt 0:01:09]} 36. Re3 {[%emt 0:00:33]} Kc7 {[%emt 0:00:10]} 37. Rc3+ {[%emt 0:00:12]} Rc6 {[%emt 0:00:15]} 38. Rcd3 {[%emt 0:00:19]} g6 {[%emt 0:00:56]} 39. a4 {[%emt 0:00:25]} f5 {[%emt 0:00:38]} 40. b4 {[%emt 0:00:20]} b5 {[%emt 0:01:16]} 41. axb5 {[%emt 0:31:19]} axb5 {[%emt 0:30:10]} 1/2-1/2

[Event "Slovakian-ch Youth 2022"]
[Site "Lubovna"]
[Date "2022.05.24"]
[Round "5.34"]
[White "Papay Aurel"]
[Black "Gobl, Fabian"]
[Result "1-0"]
[ECO "C02"]
[WhiteElo "1000"]
[BlackElo "1017"]
[Annotator "NA RC COMBH"]
[PlyCount "43"]
[EventDate "2022.05.22"]
[EventCountry "SVK"]
[SourceTitle "playchess.com"]
[Source "ChessBase"]
[SourceQuality "1"]
[TimeControl "40/5400+30:1800+30"]

1. e4 {[%emt 0:00:13]} e6 {[%emt 0:00:18]} 2. d4 {[%emt 0:00:11]} d5 {[%emt 0:00:14]} 3. e5 {[%emt 0:00:33]} c5 {[%emt 0:00:10]} 4. c3 {[%emt 0:00:22]} cxd4 {[%emt 0:00:40]} 5. cxd4 {[%emt 0:00:13]} Nc6 {[%emt 0:00:17]} 6. Nf3 {[%emt 0:00:22]} Bb4+ {[%emt 0:09:11]} 7. Bd2 {[%emt 0:02:55]} Bxd2+ {[%emt 0:00:21]} 8. Nbxd2 {[%emt 0:00:10]} Nge7 {[%emt 0:02:14]} 9. Bd3 {[%emt 0:04:31]} O-O {[%emt 0:00:39]} 10. O-O {[%emt 0:02:15]} Qb6 {[%emt 0:05:06]} 11. Qc2 {[%emt 0:01:10]} g6 {[%emt 0:01:16]} 12. a3 {[%emt 0:03:06]} Nxd4 {[%emt 0:00:29]} 13. Nxd4 {[%emt 0:00:53]} Qxd4 {[%emt 0:00:35]} 14. Nf3 {[%emt 0:00:11]} Qb6 {[%emt 0:00:30]} 15. b4 {[%emt 0:05:06]} Bd7 {[%emt 0:00:59]} 16. Qd2 {[%emt 0:00:29]} Nf5 {[%emt 0:00:39]} 17. Bxf5 {[%emt 0:00:19]} exf5 {[%emt 0:00:18]} 18. Qh6 {[%emt 0:00:25]} Rfc8 {[%emt 0:02:13]} 19. Ng5 {[%emt 0:01:00]} Be6 {[%emt 0:00:48]} 20. Nxh7 {[%emt 0:02:56]} f6 {[%emt 0:04:21]} 21. Qxg6+ {[%emt 0:05:24]} Kh8 {[%emt 0:01:09]} 22. Nxf6 {[%emt 0:00:23]} 1-0